bitfinex-derivatives/quotes_SOLF0:USTF0_20250206
["timestamp","ask_amount","ask_price","bid_price","bid_amount"]
[1738852462315,0.92525565,198.7,198.57,0.03712609]
[1738852462512,0.03181781,198.6,198.57,36.27118049]
[1738852462712,56.8613474,198.77,198.57,36.2340544]
[1738852462917,0.92497115,198.76,198.61,36.2340544]
[1738852463119,0.92497115,198.76,198.62,3.1138]
[1738852463327,20.524293,198.77,198.62,3.1138]
[1738852463921,0.03590692,198.71,198.68,0.03571914]
[1738852464324,36.26996132,198.71,198.68,1.914e-05]
[1738852464524,5.0322,198.69,198.68,1.914e-05]
[1738852464823,0.03590692,198.71,198.68,1.914e-05]
[1738852465022,5.06760692,198.71,198.68,1.914e-05]
[1738852465221,0.03590692,198.71,198.68,1.914e-05]
[1738852465524,0.03590692,198.71,198.68,5.03221914]
[1738852465723,0.03590692,198.71,198.68,1.914e-05]
[1738852466718,5.0322,198.69,198.68,1.914e-05]
[1738852471315,0.03590692,198.71,198.68,1.914e-05]
[1738852471920,5.0322,198.69,198.68,1.914e-05]
[1738852472421,41.2662544,198.69,198.68,1.914e-05]
[1738852473828,42.19137047,198.69,198.68,1.914e-05]
[1738852474019,41.2662544,198.69,198.68,1.914e-05]
[1738852474223,41.2662544,198.69,198.56,3.2133]
[1738852474224,36.2340544,198.69,198.56,3.2133]
[1738852474522,36.2340544,198.65,198.56,1.6079]
[1738852475025,4.6,198.7,198.58,36.2340544]
[1738852475226,0.1021,198.74,198.58,36.2340544]
[1738852475426,5.0329,198.67,198.62,5.0339]
[1738852475619,0.03327291,198.66,198.62,0.03709773]
[1738852475828,5.0336,198.64,198.62,0.03709773]
[1738852476023,5.0336,198.64,198.58,36.2340544]
[1738852476427,0.03799426,198.65,198.61,5.06606451]
[1738852476627,0.03799426,198.65,198.62,1.5079]
[1738852476929,0.92488208,198.75,198.62,1.5079]
[1738852477124,0.92488208,198.74,198.62,1.5079]
[1738852477323,0.4982,198.77,198.62,1.5079]
[1738852477525,5.0334,198.65,198.62,1.5079]
[1738852477821,0.4982,198.77,198.62,1.5079]
[1738852478028,0.03277254,198.65,198.62,1.54148781]
[1738852478328,5.0331,198.66,198.62,1.5079]
[1738852478526,36.2340544,198.73,198.62,1.54372971]
[1738852478527,0.03276366,198.65,198.62,1.54372971]
[1738852478919,0.4982,198.77,198.62,0.03582971]
[1738852478920,36.2340544,198.7,198.62,0.03582971]
[1738852479125,0.03564731,198.65,198.62,0.03582971]
[1738852479327,5.035,198.58,198.57,1.6207]
[1738852480931,0.03740959,198.63,198.56,1.64030988]
[1738852481325,5.0352,198.57,198.56,1.64030988]
[1738852481725,5.0352,198.57,198.56,0.03240988]
[1738852482031,0.03206599,198.61,198.56,0.03240988]
[1738852482426,5.06646599,198.61,198.56,5.06780988]
[1738852482625,0.03206599,198.61,198.56,0.03240988]
[1738852482821,36.2340544,198.71,198.56,36.26646428]
[1738852483022,41.4371544,198.75,198.62,5.0337]
[1738852483331,41.4371544,198.75,198.56,36.2340544]
[1738852483530,41.4371544,198.75,198.63,5.0336]
[1738852483726,41.4371544,198.75,198.56,36.2340544]
[1738852483922,5.0321,198.7,198.61,5.0341]
[1738852484226,0.03368398,198.67,198.64,0.03309116]
[1738852484425,5.06658398,198.67,198.64,0.03309116]
[1738852484724,5.06820669,198.67,198.64,0.03309116]
[1738852484926,0.03530669,198.67,198.64,0.03309116]
[1738852485121,5.0332,198.65,198.64,0.03309116]
[1738852486329,0.03530669,198.67,198.53,1.5718]
[1738852486534,5.0351,198.58,198.53,1.5718]
[1738852486841,36.2340544,198.68,198.53,1.5718]
[1738852487135,5.0347,198.59,198.54,5.0357]
[1738852487628,5.0353,198.57,198.55,0.03621812]
[1738852487828,0.5317,198.69,198.55,0.03621812]
[1738852488134,0.03363799,198.58,198.54,0.03611072]
[1738852488327,5.035,198.58,198.53,6.608]
[1738852488525,5.06868604,198.58,198.54,0.0371357]
[1738852488728,0.03368604,198.58,198.54,0.0371357]
[1738852488924,190.0,198.69,198.55,36.2340544]
[1738852489138,36.2340544,198.74,198.55,36.2340544]
[1738852489335,0.92496322,198.73,198.55,36.2340544]
[1738852489537,36.2340544,198.7,198.55,36.2340544]
[1738852489736,36.2340544,198.7,198.53,1.5718]
[1738852490037,0.0317648,198.63,198.6,0.03510291]
[1738852490435,36.2340544,198.74,198.6,0.03510291]
[1738852490436,5.0331,198.66,198.6,5.0343]
[1738852490735,0.03757607,198.63,198.6,5.07229915]
[1738852491128,0.03757607,198.63,198.61,5.034]
[1738852491933,0.03757607,198.63,198.6,0.03799915]
[1738852492537,36.2340544,198.78,198.61,36.2340544]
[1738852492735,56.7583474,198.82,198.65,36.2340544]
[1738852492930,0.92465935,198.81,198.65,36.2340544]
[1738852493130,0.92465935,198.81,198.66,5.0329]
[1738852493337,36.2340544,198.78,198.62,3.1188]
[1738852493743,0.03229806,198.72,198.68,0.03425806]
[1738852494234,5.0322,198.69,198.68,0.03425806]
[1738852494433,36.2340544,198.7,198.45,99.61194922]
[1738852494633,36.2340544,198.7,198.54,1.6319]
[1738852494830,36.2340544,198.7,198.56,5.0354]
[1738852495036,36.2340544,198.7,198.54,1.6319]
[1738852495237,5.0334,198.65,198.59,5.0345]
[1738852495433,36.2340544,198.7,198.59,5.0345]
[1738852495630,0.035213,198.64,198.6,0.03268825]
[1738852495832,5.0338,198.63,198.6,0.03268825]
[1738852496039,0.035213,198.64,198.6,0.03268825]
[1738852497034,5.0342,198.61,198.6,0.03268825]
[1738852497541,0.035213,198.64,198.6,0.03268825]
[1738852497742,0.035213,198.64,198.61,5.0341]
[1738852497942,0.035213,198.64,198.6,0.03268825]
[1738852498241,0.035213,198.64,198.62,5.0338]
[1738852498441,0.035213,198.64,198.6,0.03268825]
[1738852498642,0.035213,198.64,198.6,5.06688825]
[1738852498841,0.035213,198.64,198.6,0.03268825]
[1738852499141,5.034,198.62,198.6,0.03268825]
[1738852499340,0.035213,198.64,198.6,0.03268825]
[1738852500846,5.0342,198.62,198.6,0.03268825]
[1738852501043,0.035213,198.64,198.6,0.03268825]
[1738852501550,5.0342,198.61,198.6,0.03268825]
[1738852501744,0.035213,198.64,198.6,0.03268825]
[1738852501953,190.0,198.74,198.6,0.03268825]
[1738852502153,5.0321,198.7,198.59,36.2340544]
[1738852502446,36.2340544,198.8,198.63,36.2340544]
[1738852502651,5.0304,198.77,198.7,5.0319]
[1738852502848,20.524293,198.81,198.7,5.0319]
[1738852503053,20.524293,198.76,198.71,36.2340544]
[1738852503253,15.560493,198.76,198.74,0.03176148]
[1738852503549,3.149393,198.76,198.74,0.03176148]
[1738852503749,48.3114749,198.77,198.74,0.03176148]
[1738852503952,48.3114749,198.77,198.75,5.0306]
[1738852504249,48.3114749,198.77,198.74,0.03176148]
[1738852504456,5.0306,198.75,198.74,0.03176148]
[1738852504751,48.3114749,198.77,198.74,0.03176148]
[1738852505951,5.0306,198.75,198.74,0.03176148]
[1738852506352,48.3114749,198.77,198.74,0.03176148]
[1738852506353,0.03617958,198.77,198.74,0.03176148]
[1738852507043,5.0306,198.75,198.74,0.03176148]
[1738852508348,0.03617958,198.77,198.74,0.03176148]
[1738852509158,0.03617958,198.77,198.65,27.53310705]
[1738852509360,0.03617958,198.77,198.64,1.5767]
[1738852509560,1.5813,198.77,198.66,5.0327]
[1738852509750,3.116,198.77,198.66,5.0327]
[1738852509954,3.116,198.77,198.63,5.0336]
[1738852510155,36.2340544,198.7,198.6,6.97541487]
[1738852510357,36.2340544,198.7,198.68,4.187e-05]
[1738852510655,36.2340544,198.7,198.6,6.97541487]
[1738852510856,36.2340544,198.66,198.6,6.97541487]
[1738852511055,36.2340544,198.66,198.59,20.55769218]
[1738852511056,3.116,198.65,198.59,15.59329218]
[1738852511359,3.116,198.65,198.58,47.17871627]
[1738852511360,36.2340544,198.62,198.58,47.17871627]
[1738852511562,5.0347,198.59,198.58,8.049e-05]
[1738852511860,36.2340544,198.62,198.6,0.03873136]
[1738852512058,0.9255789,198.61,198.56,74.27142428]
[1738852512250,36.2340544,198.58,198.56,74.27142428]
[1738852512456,5.0352,198.57,198.56,74.27142428]
[1738852513263,0.0331407,198.58,198.55,0.03796933]
[1738852514054,36.2340544,198.66,198.55,0.03796933]
[1738852514257,4.54,198.69,198.55,0.03796933]
[1738852514561,4.54,198.69,198.51,36.2340544]
[1738852514862,36.2340544,198.7,198.51,36.2340544]
[1738852515258,0.03464148,198.62,198.59,0.03635416]
[1738852515661,36.2340544,198.74,198.59,0.03635416]
[1738852515860,270.443274,198.83,198.59,36.27040856]
[1738852516061,80.443274,198.77,198.63,36.2340544]
[1738852516261,5.0304,198.76,198.67,5.0326]
[1738852516464,80.443274,198.77,198.63,36.2340544]
[1738852516964,0.03616786,198.72,198.68,0.03774737]
[1738852517368,5.0317,198.71,198.68,0.03774737]
[1738852517561,0.03616786,198.72,198.68,0.03774737]
[1738852517864,5.0322,198.69,198.68,4.737e-05]
[1738852518662,40.81022226,198.72,198.56,1.5861]
[1738852518861,36.2340544,198.66,198.56,1.5861]
[1738852519061,36.2340544,198.66,198.52,1.5893]
[1738852519366,36.2340544,198.62,198.52,1.5893]
[1738852519964,0.03767185,198.59,198.55,0.03758605]
[1738852520566,5.0355,198.56,198.55,0.03758605]
[1738852520764,36.2340544,198.58,198.45,3.0801]
[1738852521169,5.037,198.5,198.45,3.0801]
[1738852521965,5.0365,198.53,198.46,5.0379]
[1738852522166,0.03819199,198.49,198.46,0.035342]
[1738852522568,5.0365,198.53,198.47,5.0377]
[1738852522771,0.03343489,198.49,198.46,0.03234738]
[1738852523061,5.0357,198.56,198.48,5.0375]
[1738852523262,4.54,198.61,198.45,3.0801]
[1738852523968,36.2340544,198.57,198.45,3.0801]
[1738852524461,36.2340544,198.57,198.49,0.03219662]
[1738852524462,0.03720277,198.53,198.49,0.03219662]
[1738852524667,36.27125717,198.53,198.49,9.662e-05]
[1738852525059,5.037,198.5,198.49,9.662e-05]
[1738852526166,5.037,198.5,198.36,1.6255]
[1738852526167,77.89418128,198.5,198.34,1.6453]
[1738852526364,36.2340544,198.43,198.28,1.6453]
[1738852526565,5.041,198.35,198.29,5.0423]
[1738852526865,36.2340544,198.47,198.3,36.2340544]
[1738852527067,4.5,198.5,198.35,36.2340544]
[1738852527268,4.5,198.5,198.36,1.6255]
[1738852527470,0.03399522,198.4,198.37,0.03793019]
[1738852527668,4.5,198.5,198.36,6.666]
[1738852527969,0.03719328,198.4,198.37,0.03635986]
[1738852528361,36.2340544,198.43,198.29,3.0614]
[1738852528564,0.03545057,198.4,198.37,0.03591198]
[1738852528960,5.042,198.31,198.28,1.6453]
[1738852529161,5.042,198.31,198.0,76.14152731]
[1738852529162,36.2340544,198.35,198.23,1.5393]
[1738852529963,36.2340544,198.35,198.18,39.3950544]
[1738852529964,36.2340544,198.28,198.18,1.6389]
[1738852530275,36.2340544,198.28,198.27,9.031e-05]
[1738852530574,36.2340544,198.28,198.18,1.6389]
[1738852530870,36.2340544,198.39,198.2,36.2340544]
[1738852531073,0.92673325,198.38,198.2,36.2340544]
[1738852531268,36.2340544,198.39,198.2,36.2340544]
[1738852531671,0.03536365,198.31,198.27,0.03671841]
[1738852531976,36.2340544,198.39,198.2,36.2340544]
[1738852532273,36.2340544,198.39,198.24,36.2340544]
[1738852532473,6.195e-05,198.31,198.3,5.0421]
[1738852532876,5.0393,198.41,198.34,5.0409]
[1738852533174,4.5,198.46,198.28,36.2340544]
[1738852533673,5.0392,198.42,198.28,36.2340544]
[1738852533875,0.03732081,198.39,198.35,0.03865023]
[1738852534976,55.09066628,198.49,198.35,0.03865023]
[1738852535477,5.0369,198.51,198.42,5.039]
[1738852535678,36.2340544,198.58,198.43,1.5337]
[1738852535878,0.92575702,198.57,198.43,1.5337]
[1738852536069,5.0359,198.55,198.46,5.038]
[1738852536377,0.03799638,198.52,198.49,0.03852421]
[1738852536877,0.92551286,198.61,198.45,36.2340544]
[1738852537177,0.03404294,198.52,198.49,0.03597808]
[1738852537778,0.03381234,198.52,198.49,0.03292504]
[1738852538071,0.1473,198.64,198.49,0.03292504]
[1738852538274,91.32472068,198.66,198.49,0.03292504]
[1738852538577,91.32472068,198.66,198.48,36.2340544]
[1738852538875,91.32472068,198.66,198.52,36.2340544]
[1738852539076,5.0338,198.63,198.56,5.0355]
[1738852539273,0.03208246,198.6,198.57,0.03350947]
[1738852539673,0.03208246,198.6,198.58,5.0349]
[1738852539874,0.03208246,198.6,198.57,0.03350947]
[1738852541677,5.0334,198.65,198.57,0.03350947]
[1738852541872,0.1074,198.76,198.57,0.03350947]
[1738852542076,0.9248737,198.75,198.56,36.2340544]
[1738852542380,0.9248737,198.75,198.6,36.2340544]
[1738852542780,36.3414544,198.76,198.6,36.2340544]
[1738852542979,0.03509453,198.69,198.66,0.03848941]
[1738852543379,5.0327,198.67,198.66,0.03848941]
[1738852544682,5.0344,198.61,198.54,1.5087]
[1738852544983,36.2340544,198.68,198.54,1.5087]
[1738852545483,36.2340544,198.68,198.54,6.5446]
[1738852545983,5.0342,198.61,198.59,0.0322223]
[1738852546384,0.03804175,198.63,198.59,0.0322223]
[1738852546578,5.07174175,198.63,198.59,0.0322223]
[1738852546776,0.03804175,198.63,198.59,0.0322223]
[1738852548884,36.2340544,198.76,198.59,0.0322223]
[1738852549285,36.2340544,198.76,198.58,36.2340544]
[1738852549484,36.2340544,198.72,198.58,36.2340544]
[1738852549689,36.2340544,198.72,198.55,1.6208]
[1738852550189,0.0332767,198.65,198.62,0.0351398]
[1738852550383,5.0337,198.64,198.62,0.0351398]
[1738852550785,36.2340544,198.72,198.62,0.0351398]
[1738852550987,5.0337,198.63,198.62,0.0351398]
[1738852551189,0.03734814,198.65,198.62,0.0351398]
[1738852551489,0.0721,198.79,198.62,36.2691942]
[1738852551788,0.92472877,198.78,198.62,36.2691942]
[1738852552089,36.3086544,198.8,198.67,36.2340544]
[1738852552090,0.0746,198.8,198.67,36.2340544]
[1738852552285,5.0303,198.77,198.72,5.0313]
[1738852552589,190.1074,198.83,198.68,1.526]
[1738852552884,190.1074,198.83,198.73,0.03685285]
[1738852552885,0.03468638,198.76,198.73,0.03685285]
[1738852553090,36.26874078,198.76,198.59,36.2340544]
[1738852553281,0.92462583,198.82,198.55,36.2340544]
[1738852553282,36.2340544,198.72,198.55,36.2340544]
[1738852553484,5.0327,198.67,198.62,5.0338]
[1738852553792,36.2340544,198.72,198.55,36.2340544]
[1738852554485,0.03564061,198.65,198.62,0.03445017]
[1738852554686,5.0337,198.63,198.62,0.03445017]
[1738852554882,36.2340544,198.68,198.52,1.652]
[1738852555086,1.6246,198.71,198.55,36.2340544]
[1738852555390,0.03212637,198.64,198.61,5.06868578]
[1738852555586,0.03212637,198.64,198.61,0.03458578]
[1738852555789,5.0339,198.62,198.61,0.03458578]
[1738852556092,36.27140165,198.64,198.52,1.652]
[1738852556288,36.2340544,198.6,198.51,6.5627]
[1738852556594,36.2340544,198.6,198.44,1.5975]
[1738852556791,5.0371,198.5,198.44,3.1098]
[1738852557092,36.2340544,198.56,198.44,1.5975]
[1738852557291,5.0375,198.48,198.45,0.03677972]
[1738852557683,36.2340544,198.55,198.43,1.6103]
[1738852557883,0.03351267,198.48,198.45,0.03519304]
[1738852558284,5.0378,198.47,198.45,0.03519304]
[1738852558683,0.03441878,198.48,198.4,1.5567]
[1738852558888,0.03441878,198.48,198.44,0.03650699]
[1738852560993,0.03441878,198.48,198.44,6.99e-06]
[1738852561194,5.038,198.46,198.44,6.99e-06]
[1738852561388,36.2340544,198.47,198.44,6.99e-06]
[1738852561587,0.03441878,198.48,198.44,6.99e-06]
[1738852562196,1.5241,198.59,198.44,6.99e-06]
[1738852562500,4.44,198.61,198.46,36.2340544]
[1738852562702,3.2537,198.66,198.47,1.5762]
[1738852562895,36.2340544,198.62,198.47,1.5762]
[1738852563599,0.03336001,198.56,198.53,0.03648181]
[1738852563990,0.03336001,198.56,198.44,1.5531]
[1738852564195,36.2340544,198.54,198.43,1.648]
[1738852564494,5.0384,198.45,198.43,1.648]
[1738852564707,1.5196,198.53,198.35,1.593]
[1738852565401,0.03467485,198.46,198.42,0.03766715]
[1738852566007,0.0687,198.65,198.43,36.2340544]
[1738852566008,36.2340544,198.64,198.43,36.2340544]
[1738852566202,1.5883,198.65,198.42,0.03766715]
[1738852566408,5.0374,198.49,198.42,5.039]
[1738852566599,36.2340544,198.55,198.37,36.2340544]
[1738852566803,36.2340544,198.6,198.37,36.2340544]
[1738852567009,5.0359,198.55,198.41,36.2340544]
[1738852567205,36.2340544,198.6,198.47,0.03360463]
[1738852567411,0.03325001,198.5,198.47,0.03360463]
[1738852567606,5.0355,198.56,198.46,3.1511]
[1738852567909,0.0345158,198.5,198.47,0.03397271]
[1738852568108,5.0716158,198.5,198.47,0.03397271]
[1738852568311,36.2340544,198.6,198.42,5.0388]
[1738852568508,36.2340544,198.54,198.37,36.2340544]
[1738852568804,0.03250498,198.5,198.47,0.03567911]
[1738852569401,5.0375,198.48,198.33,40.7740544]
[1738852569599,36.26655938,198.5,198.34,1.5841]
[1738852569809,36.2340544,198.46,198.34,1.5841]
[1738852570607,5.0398,198.4,198.34,1.5841]
[1738852570802,0.0360161,198.42,198.38,0.03843491]
[1738852571107,36.2700705,198.42,198.3,1.5841]
[1738852571304,36.2340544,198.42,198.3,1.5841]
[1738852571507,36.2340544,198.42,198.26,1.5781]
[1738852571708,36.2340544,198.38,198.25,22.19470421]
[1738852571909,36.2340544,198.34,198.25,20.61060421]
[1738852572205,36.2340544,198.34,198.16,36.2340544]
[1738852572206,36.2340544,198.3,198.22,28.92960144]
[1738852572406,36.2340544,198.3,198.17,1.5557]
[1738852572607,36.2340544,198.3,198.28,2.897e-05]
[1738852572801,5.0441,198.22,198.15,5.0458]
[1738852573006,36.2340544,198.26,198.12,30.62395273]
[1738852573301,5.044,198.23,198.12,32.59325273]
[1738852573502,36.2340544,198.27,198.13,1.6293]
[1738852573905,0.03344219,198.19,198.16,0.03674274]
[1738852574309,36.2340544,198.27,198.16,0.03674274]
[1738852574508,5.0452,198.18,198.16,0.03674274]
[1738852574912,36.2340544,198.19,198.12,27.54685273]
[1738852575109,5.0462,198.14,198.12,27.54685273]
[1738852575516,36.2340544,198.19,198.12,27.54685273]
[1738852575713,5.0455,198.17,198.12,27.54685273]
[1738852576012,5.0455,198.17,198.07,1.493]
[1738852576013,36.2340544,198.23,198.07,1.493]
[1738852576209,0.0373203,198.16,198.13,0.0356882]
[1738852576609,36.2340544,198.23,198.13,0.0356882]
[1738852576806,5.046,198.15,198.13,0.0356882]
[1738852577316,1.5254,198.22,198.07,1.493]
[1738852577514,0.03431822,198.16,198.12,0.03266787]
[1738852577910,36.2340544,198.27,198.13,36.2340544]
[1738852578615,5.0438,198.24,198.16,5.0455]
[1738852578811,5.0438,198.24,198.13,36.2340544]
[1738852579113,5.0446,198.21,198.14,5.0461]
[1738852579315,0.03662681,198.2,198.17,0.0365723]
[1738852579817,5.0435,198.25,198.19,5.0449]
[1738852580009,0.03529456,198.2,198.19,5.0449]
[1738852580408,1.5254,198.3,198.2,5.0445]
[1738852580615,0.03196915,198.21,198.17,0.03540987]
[1738852580816,0.03196915,198.21,198.13,36.2340544]
[1738852581007,1.5671,198.33,198.17,36.2340544]
[1738852581208,1.5076,198.36,198.21,36.2340544]
[1738852581518,4.56,198.37,198.3,5.0419]
[1738852581716,0.03193096,198.3,198.22,3.1236]
[1738852581917,0.03193096,198.3,198.27,0.03635527]
[1738852582113,5.0412,198.34,198.27,0.03635527]
[1738852582313,4.56,198.37,198.27,0.03635527]
[1738852582514,0.03672775,198.3,198.27,0.03635527]
[1738852582714,4.56,198.37,198.27,0.03635527]
[1738852583115,0.03190661,198.3,198.27,0.03635527]
[1738852583516,3.0629,198.41,198.27,0.03635527]
[1738852583711,3.0629,198.41,198.31,5.0416]
[1738852583916,3.0629,198.41,198.25,36.2340544]
[1738852583917,1.5076,198.41,198.25,36.2340544]
[1738852584217,0.03662072,198.35,198.34,0.03507611]
[1738852584718,1.5076,198.41,198.34,0.03507611]
[1738852584922,5.0408,198.35,198.34,0.03507611]
[1738852585811,5.0416,198.32,198.23,1.4979]
[1738852586012,0.03235347,198.36,198.23,1.4979]
[1738852586215,36.2340544,198.4,198.23,1.4979]
[1738852586620,36.2340544,198.36,198.23,1.4979]
[1738852587023,0.03733044,198.31,198.28,0.03823663]
[1738852587823,5.0423,198.29,198.28,0.03823663]
[1738852588022,0.03733044,198.31,198.08,291.84]
[1738852588223,36.2340544,198.27,198.13,1.5915]
[1738852588521,5.0439,198.23,198.13,1.5915]
[1738852588723,36.2340544,198.27,198.13,1.5915]
[1738852588918,5.0446,198.2,198.14,5.046]
[1738852589116,36.2340544,198.23,198.13,1.5915]
[1738852589314,0.03499144,198.22,198.18,0.03248792]
[1738852590324,0.03499144,198.22,198.19,5.0448]
[1738852590625,0.03499144,198.22,198.18,0.03248792]
[1738852594129,5.0444,198.21,198.18,0.03248792]
[1738852594328,0.03499144,198.22,198.18,0.03248792]
[1738852596124,0.03499144,198.22,198.18,5.07738792]
[1738852596325,0.03499144,198.22,198.18,0.03248792]
[1738852597024,0.03499144,198.22,198.19,5.0448]
[1738852597230,0.03499144,198.22,198.18,0.03248792]
[1738852599034,0.03499144,198.22,198.21,5.0443]
[1738852599228,0.03499144,198.22,198.18,0.03248792]
[1738852599530,0.03499144,198.22,198.21,5.0443]
[1738852599734,36.2340544,198.34,198.18,0.03248792]
[1738852600035,3.2907,198.39,198.32,5.0415]
[1738852600335,1.6474,198.39,198.25,36.2340544]
[1738852600535,5.0406,198.36,198.3,5.042]
[1738852600735,1.6474,198.39,198.22,1.5382]
[1738852600936,0.03297946,198.35,198.31,0.03693194]
[1738852601137,5.0415,198.32,198.31,0.03693194]
[1738852601836,0.03297946,198.35,198.31,0.03693194]
[1738852603138,5.0416,198.32,198.31,0.03693194]
[1738852603437,0.03297946,198.35,198.31,0.03693194]
[1738852603839,0.03297946,198.35,198.32,5.0415]
[1738852604034,0.03297946,198.35,198.31,0.03693194]
[1738852604344,0.03297946,198.35,198.31,5.07873194]
[1738852604529,0.03297946,198.35,198.31,0.03693194]
[1738852604734,0.03297946,198.35,198.34,5.041]
[1738852605031,37.8434544,198.44,198.31,0.03693194]
[1738852605234,36.2340544,198.48,198.3,1.6101]
[1738852605436,5.0383,198.45,198.41,5.0393]
[1738852605630,20.44023348,198.5,198.33,36.2340544]
[1738852605838,5.0378,198.47,198.38,5.0398]
[1738852606039,5.0378,198.47,198.34,1.5589]
[1738852606241,20.44023348,198.48,198.34,1.5589]
[1738852606541,0.03500695,198.44,198.41,0.03565008]
[1738852607139,0.03500695,198.44,198.43,5.0388]
[1738852607333,0.03500695,198.44,198.41,0.03565008]
[1738852607738,36.26906135,198.44,198.41,0.03565008]
[1738852607942,5.039,198.42,198.41,0.03565008]
[1738852608642,0.03500695,198.44,198.41,0.03565008]
[1738852610240,5.039,198.42,198.41,0.03565008]
[1738852610441,0.03500695,198.44,198.33,5.0411]
[1738852610635,0.92626098,198.49,198.31,1.6417]
[1738852610842,36.2340544,198.42,198.31,1.6417]
[1738852611633,36.2340544,198.42,198.35,0.03655245]
[1738852611634,0.03470295,198.38,198.35,0.03655245]
[1738852611839,5.07480295,198.38,198.35,0.03655245]
[1738852612036,0.03470295,198.38,198.35,0.03655245]
[1738852612438,36.26875735,198.38,198.23,1.6417]
[1738852612643,36.2340544,198.34,198.23,1.6417]
[1738852613142,5.0417,198.32,198.23,1.6417]
[1738852613347,36.2340544,198.38,198.24,1.637]
[1738852613535,36.2340544,198.34,198.24,1.637]
[1738852613740,0.03713765,198.29,198.26,0.03278323]
[1738852614144,36.2340544,198.4,198.24,1.637]
[1738852614348,0.03724037,198.29,198.26,0.0361433]
[1738852614643,5.0417,198.32,198.27,5.0428]
[1738852614836,36.2340544,198.4,198.26,0.03707337]
[1738852615037,0.03331269,198.31,198.24,1.637]
[1738852615442,36.2340544,198.35,198.31,0.03866597]
[1738852615644,36.2340544,198.39,198.24,1.637]
[1738852615845,5.0415,198.33,198.31,0.03519888]
[1738852616044,0.0341144,198.35,198.31,0.03519888]
[1738852616449,0.0341144,198.35,198.34,5.041]
[1738852617344,20.44023348,198.44,198.36,5.0404]
[1738852617545,20.44023348,198.44,198.32,1.5134]
[1738852617941,20.44023348,198.44,198.33,36.2340544]
[1738852618142,20.44023348,198.44,198.33,37.8547544]
[1738852618447,20.44023348,198.44,198.37,36.27233743]
[1738852618448,17.95175153,198.44,198.37,36.27233743]
[1738852618649,17.95175153,198.52,198.37,36.27233743]
[1738852618945,17.95175153,198.52,198.45,36.2340544]
[1738852619153,3.01625153,198.52,198.5,36.2340544]
[1738852619346,51.01241781,198.53,198.5,36.2340544]
[1738852619552,15.88024111,198.53,198.51,5.0366]
[1738852619752,0.66177517,198.53,198.51,5.0366]
[1738852620052,72.36634917,198.54,198.53,5.0362]
[1738852620251,64.42024917,198.54,198.53,5.0362]
[1738852620547,46.30454917,198.54,198.53,5.0362]
[1738852620753,41.07844768,198.56,198.5,72.50186499]
[1738852621052,1.5903,198.73,198.55,36.2340544]
[1738852621253,1.5903,198.73,198.59,36.2340544]
[1738852621456,84.28579955,198.78,198.65,5.0331]
[1738852621653,0.03683456,198.66,198.65,5.0331]
[1738852621851,84.28579955,198.78,198.63,36.2340544]
[1738852622155,84.28579955,198.78,198.67,36.2340544]
[1738852622543,5.0304,198.76,198.65,5.0331]
[1738852622850,84.28579955,198.78,198.71,6.93624852]
[1738852622851,1.6494,198.78,198.71,6.93624852]
[1738852623050,0.03281164,198.72,198.71,6.93624852]
[1738852623453,1.6494,198.78,198.71,6.93624852]
[1738852623644,0.03532123,198.73,198.71,6.93624852]
[1738852623845,5.06652123,198.73,198.71,6.93624852]
[1738852624447,0.03532123,198.73,198.7,20.61060421]
[1738852624653,5.0317,198.71,198.69,0.03262921]
[1738852624849,36.2340544,198.72,198.65,30.25932351]
[1738852625058,5.0329,198.66,198.65,30.25932351]
[1738852625253,5.0329,198.66,198.65,19.79412351]
[1738852625749,5.0329,198.66,198.65,2.351e-05]
[1738852625955,5.0334,198.64,198.63,16.04503006]
[1738852626155,41.2674544,198.64,198.63,3.006e-05]
[1738852626353,36.2340544,198.64,198.61,64.47920894]
[1738852626553,36.2340544,198.64,198.5,64.47920894]
[1738852626753,36.2340544,198.64,198.61,0.0327109]
[1738852626949,5.0348,198.59,198.5,64.47920894]
[1738852627152,36.2340544,198.64,198.5,64.47920894]
[1738852627553,5.034,198.62,198.53,5.0361]
[1738852627954,36.2340544,198.64,198.53,5.0361]
[1738852628259,0.03768917,198.59,198.56,0.03789619]
[1738852630163,5.035,198.58,198.56,0.03789619]
[1738852630465,0.03768917,198.59,198.56,0.03789619]
[1738852631557,5.0352,198.57,198.56,0.03789619]
[1738852632158,5.0361,198.54,198.47,3.0441]
[1738852632364,36.2340544,198.56,198.47,3.0441]
[1738852632563,36.2340544,198.56,198.41,1.5186]
[1738852632865,5.0368,198.51,198.41,3.0898]
[1738852633156,36.2340544,198.56,198.41,3.0898]